bitfinex/quotes_BTCUSD_20251110
["timestamp","ask_amount","ask_price","bid_price","bid_amount"]
[1762763416261,1.0183067,106250.0,106240.0,0.00114811]
[1762763426905,0.68658805,106250.0,106240.0,0.00114811]
[1762763427043,1.04446183,106250.0,106240.0,0.00114811]
[1762763428182,1.05323587,106250.0,106240.0,0.00114811]
[1762763428386,1.11076198,106250.0,106240.0,0.00114811]
[1762763428576,1.05323587,106250.0,106240.0,0.00114811]
[1762763431096,1.05370548,106250.0,106240.0,0.00114811]
[1762763431931,1.02755035,106250.0,106240.0,0.00114811]
[1762763432152,1.02708074,106250.0,106240.0,0.00114811]
[1762763432376,1.05323587,106250.0,106240.0,0.00114811]
[1762763432676,1.05370552,106250.0,106240.0,0.00114811]
[1762763432910,1.05323587,106250.0,106240.0,0.00114811]
[1762763433329,1.05370552,106250.0,106240.0,0.00114811]
[1762763433614,1.17157141,106250.0,106240.0,0.00114811]
[1762763433816,1.07346968,106250.0,106240.0,0.00114811]
[1762763434646,1.08871455,106250.0,106240.0,0.00114811]
[1762763435156,1.04731455,106250.0,106240.0,0.00114811]
[1762763435398,1.08871455,106250.0,106240.0,0.00114811]
[1762763436399,1.04731455,106250.0,106240.0,0.00114811]
[1762763436620,1.08871455,106250.0,106240.0,0.00114811]
[1762763438254,1.08871455,106250.0,106230.0,0.0002]
[1762763438255,0.22443529,106240.0,106230.0,0.0002]
[1762763438452,0.22443529,106240.0,106230.0,0.00034389]
[1762763438453,2.59395659,106240.0,106230.0,0.00034389]
[1762763438591,2.19546159,106240.0,106230.0,0.00034389]
[1762763438797,2.20506159,106240.0,106230.0,0.00034389]
[1762763439178,2.17890646,106240.0,106230.0,0.00034389]
[1762763439364,2.17937625,106240.0,106230.0,0.00034389]
[1762763440326,2.18837625,106240.0,106230.0,0.00034389]
[1762763440538,2.19037625,106240.0,106230.0,0.00034389]
[1762763440745,2.18837625,106240.0,106230.0,0.00034389]
[1762763441154,2.19337625,106240.0,106230.0,0.00034389]
[1762763441671,2.36800819,106240.0,106230.0,0.00034389]
[1762763441851,2.39330641,106240.0,106230.0,0.00034389]
[1762763442053,0.18828845,106220.0,106210.0,0.0013145]
[1762763442255,0.70852213,106220.0,106210.0,0.00140489]
[1762763442510,0.71272832,106220.0,106210.0,0.00140489]
[1762763442734,0.74100231,106220.0,106210.0,0.00140489]
[1762763443192,0.74300231,106220.0,106210.0,0.00140489]
[1762763443841,0.74400231,106220.0,106210.0,0.00140489]
[1762763444048,0.74400231,106220.0,106210.0,0.00210502]
[1762763445279,0.73522827,106220.0,106210.0,0.00210502]
[1762763448963,0.74398544,106220.0,106210.0,0.00210502]
[1762763449802,0.74198544,106220.0,106210.0,0.00210502]
[1762763450147,0.74498544,106220.0,106210.0,0.00210502]
[1762763450330,0.73669788,106220.0,106210.0,0.00210502]
[1762763450561,0.69729788,106220.0,106210.0,0.00210502]
[1762763450741,0.73873788,106220.0,106210.0,0.00210502]
[1762763450948,0.73826827,106220.0,106210.0,0.00210502]
[1762763451154,0.73873806,106220.0,106210.0,0.00210502]
[1762763451349,0.73826827,106220.0,106210.0,0.00210502]
[1762763453479,0.73873801,106220.0,106210.0,0.00210502]
[1762763453895,0.73826827,106220.0,106210.0,0.00210502]
[1762763454112,0.73873798,106220.0,106210.0,0.00210502]
[1762763454344,0.73826827,106220.0,106210.0,0.00210502]
[1762763455648,0.77445055,106220.0,106210.0,0.00210502]
[1762763456707,0.80060568,106220.0,106210.0,0.00210502]
[1762763456932,2.65318906,106220.0,106210.0,0.00210502]
[1762763457400,2.89918906,106220.0,106210.0,0.00210502]
[1762763457773,2.56747041,106220.0,106210.0,0.00210502]
[1762763458075,2.89918906,106220.0,106210.0,0.00210502]
[1762763458286,2.56747041,106220.0,106210.0,0.00210502]
[1762763458490,2.80108733,106220.0,106210.0,0.00210502]
[1762763458894,2.73011333,106220.0,106210.0,0.00210502]
[1762763460088,2.73058304,106220.0,106210.0,0.00210502]
[1762763460293,2.73011333,106220.0,106210.0,0.00210502]
[1762763460653,2.85712173,106220.0,106210.0,0.00210502]
[1762763461222,2.85312173,106220.0,106210.0,0.00210502]
[1762763461610,2.86212173,106220.0,106210.0,0.00210502]
[1762763462251,2.86012173,106220.0,106210.0,0.00210502]
[1762763462771,2.86512173,106220.0,106210.0,0.00210502]
[1762763463604,2.42358974,106220.0,106210.0,0.00210502]
[1762763463741,1.68298596,106220.0,106210.0,0.00210502]
[1762763464346,1.43698596,106220.0,106210.0,0.00210502]
[1762763464522,1.72726461,106220.0,106210.0,0.00210502]
[1762763464728,1.76871676,106220.0,106210.0,0.00210502]
[1762763464942,1.39555811,106220.0,106210.0,0.00210502]
[1762763465482,1.72727676,106220.0,106210.0,0.00210502]
[1762763465668,1.85665452,106220.0,106210.0,0.00210502]
[1762763466266,1.39555811,106220.0,106210.0,0.00210502]
[1762763466469,1.32703611,106220.0,106210.0,0.00210502]
[1762763467265,1.27713911,106220.0,106210.0,0.00210502]
[1762763468038,1.60885776,106220.0,106210.0,0.00210502]
[1762763468269,1.27713911,106220.0,106210.0,0.00210502]
[1762763468476,1.27713908,106220.0,106210.0,0.00210502]
[1762763468871,1.60885773,106220.0,106210.0,0.00210502]
[1762763469623,1.70695946,106220.0,106210.0,0.00210502]
[1762763470458,1.60885773,106220.0,106210.0,0.00210502]
[1762763470763,1.60885781,106220.0,106210.0,0.00210502]
[1762763470986,1.94185527,106220.0,106210.0,0.00210502]
[1762763471187,1.94138548,106220.0,106210.0,0.00210502]
[1762763471563,1.94185527,106220.0,106210.0,0.00210502]
[1762763471715,2.03948721,106220.0,106210.0,0.00210502]
[1762763473000,0.57472846,106210.0,106190.0,0.0002]
[1762763473207,0.6832578,106200.0,106190.0,0.00024817]
[1762763473413,0.70608652,106200.0,106190.0,0.00024817]
[1762763473626,0.70985717,106200.0,106190.0,0.00024817]
[1762763474275,1.37414701,106200.0,106190.0,0.00024817]
[1762763475500,1.37814701,106200.0,106190.0,0.00024817]
[1762763476270,0.45282093,106200.0,106190.0,0.00024817]
[1762763476514,2.41178976,106200.0,106190.0,0.00024817]
[1762763476713,3.73322452,106200.0,106190.0,0.00024817]
[1762763476923,2.83489149,106200.0,106190.0,0.00024817]
[1762763477305,2.15432006,106190.0,106180.0,0.0002]
[1762763477512,2.29799185,106190.0,106180.0,0.0002]
[1762763477691,2.93115469,106190.0,106180.0,0.0002]
[1762763477900,3.35602783,106190.0,106180.0,0.0002]
[1762763478938,3.3388727,106190.0,106180.0,0.0002]
[1762763479137,3.4096463,106190.0,106180.0,0.0002]
[1762763479299,3.31154457,106190.0,106180.0,0.00090043]
[1762763479493,3.31654457,106190.0,106180.0,0.00090043]
[1762763479724,0.94443166,106180.0,106170.0,0.0002]
[1762763479953,3.51100388,106180.0,106170.0,1e-08]
[1762763480112,0.18837713,106170.0,106160.0,0.0002]
[1762763480314,0.97709533,106170.0,106160.0,0.0002]
[1762763480520,0.95824152,106170.0,106160.0,0.0002]
[1762763480720,0.98653263,106170.0,106160.0,0.0002]
[1762763481782,0.99553263,106170.0,106160.0,0.0002]
[1762763482405,1.03656733,106170.0,106160.0,0.0002]
[1762763482773,1.08656733,106170.0,106160.0,0.0002]
[1762763483340,1.09156733,106170.0,106160.0,0.0002]
[1762763484321,1.09172951,106170.0,106160.0,0.0002]
[1762763484977,1.50782963,106160.0,106150.0,0.0002]
[1762763485177,2.07310133,106160.0,106150.0,0.00024815]
[1762763485489,2.07357112,106160.0,106150.0,0.00024815]
[1762763485717,2.14401856,106160.0,106150.0,0.00024815]
[1762763486116,2.04591683,106160.0,106150.0,0.00094887]
[1762763486317,1.94081732,106160.0,106150.0,0.00094887]
[1762763486717,1.94481732,106160.0,106150.0,0.00094887]
[1762763486916,1.97310918,106160.0,106150.0,0.00094887]
[1762763487182,1.64096426,106160.0,106150.0,0.00094887]
[1762763487393,1.97310918,106160.0,106150.0,0.00094887]
[1762763488406,1.64096426,106160.0,106150.0,0.00094887]
[1762763488593,0.97667442,106160.0,106150.0,0.00094887]
[1762763488790,1.64096426,106160.0,106150.0,0.00094887]
[1762763489337,2.03386061,106160.0,106150.0,0.00094887]
[1762763489463,1.99238061,106160.0,106150.0,0.00094887]
[1762763489665,2.03386061,106160.0,106150.0,0.00094887]
[1762763490098,2.07004289,106160.0,106150.0,0.00094887]
[1762763490583,2.07035045,106160.0,106150.0,0.00094887]
[1762763491144,2.09976295,106160.0,106150.0,0.00094887]
[1762763491343,2.14124295,106160.0,106150.0,0.00094887]
[1762763491545,2.09976295,106160.0,106150.0,0.00094887]
[1762763491754,2.141405,106160.0,106150.0,0.00094887]
[1762763492530,2.14093539,106160.0,106150.0,0.00094887]
[1762763492752,2.14140513,106160.0,106150.0,0.00094887]
[1762763494164,2.09992513,106160.0,106150.0,0.00094887]
[1762763494387,2.14140513,106160.0,106150.0,0.00094887]
[1762763497057,1.74803904,106160.0,106150.0,0.00094887]
[1762763497269,1.67037676,106160.0,106150.0,0.00094887]
[1762763497438,1.71185676,106160.0,106150.0,0.00094887]
[1762763497616,1.64096426,106160.0,106150.0,0.00094887]
[1762763500539,1.71169428,106160.0,106150.0,0.00094887]
[1762763501147,1.80979601,106160.0,106150.0,0.00094887]
[1762763502326,1.82995446,106160.0,106150.0,0.00094887]
[1762763503726,1.73185273,106160.0,106150.0,0.00094887]
[1762763504214,1.06756289,106160.0,106150.0,0.00094887]
[1762763504371,1.73185273,106160.0,106150.0,0.00094887]
[1762763505657,2.06399765,106160.0,106150.0,0.00094887]
[1762763506304,2.07276713,106160.0,106150.0,0.00094887]
[1762763507252,1.74062221,106160.0,106150.0,0.00094887]
[1762763507842,2.07276713,106160.0,106150.0,0.00094887]
[1762763508343,1.74062221,106160.0,106150.0,0.00094887]
[1762763508509,2.07276713,106160.0,106150.0,0.00094887]
[1762763509316,2.09806535,106160.0,106150.0,0.00094887]
[1762763509542,2.17015736,106160.0,106150.0,0.00094887]
[1762763510509,2.09806535,106160.0,106150.0,0.00094887]
[1762763510718,1.76592043,106160.0,106150.0,0.00094887]
[1762763510935,1.61964271,106160.0,106150.0,0.00094887]
[1762763511196,1.59135085,106160.0,106150.0,0.00094887]
[1762763513937,1.25920593,106160.0,106150.0,0.00094887]
[1762763514159,1.21523748,106160.0,106150.0,0.01736887]
[1762763514320,1.20022748,106160.0,106150.0,0.01736887]
[1762763514739,1.23993748,106160.0,106150.0,0.00094887]
[1762763514969,1.5720824,106160.0,106150.0,0.00094887]
[1762763517100,0.2118974,106160.0,106150.0,0.03616887]
[1762763517220,0.67098748,106160.0,106150.0,0.00094887]
[1762763517619,1.41327286,106160.0,106150.0,0.00094887]
[1762763518051,1.3261324,106160.0,106150.0,0.00094887]
[1762763518274,1.32619047,106160.0,106150.0,0.00094887]
[1762763518672,1.30862987,106160.0,106150.0,0.00094887]
[1762763518913,1.32618919,106160.0,106150.0,0.00094887]
[1762763520220,1.39378432,106160.0,106150.0,0.00094887]
[1762763520423,1.42207287,106160.0,106150.0,0.00094887]
[1762763520627,1.85231952,106160.0,106150.0,0.00094887]
[1762763520805,1.87254497,106160.0,106150.0,0.00094887]
[1762763521179,1.84638984,106160.0,106150.0,0.00094887]
[1762763521406,1.82616439,106160.0,106150.0,0.00094887]
[1762763521584,1.88218402,106160.0,106150.0,0.00094887]
[1762763521788,1.89096298,106160.0,106150.0,0.00094887]
[1762763521943,1.94096298,106160.0,106150.0,0.00094887]
[1762763523097,1.86787606,106160.0,106150.0,0.00094887]
[1762763523465,1.86887606,106160.0,106150.0,0.00094887]
[1762763523644,1.87787606,106160.0,106150.0,0.00094887]
[1762763523841,1.97597779,106160.0,106150.0,0.00094887]
[1762763524920,1.87787606,106160.0,106150.0,0.00094887]
[1762763526522,1.92217543,106160.0,106150.0,0.00094887]
[1762763528451,1.59003051,106160.0,106150.0,0.00094887]
[1762763528658,1.56980313,106160.0,106150.0,0.00094887]
[1762763529025,1.90194805,106160.0,106150.0,0.00094887]
[1762763529454,1.92872178,106160.0,106150.0,0.00094887]
[1762763529666,1.93749822,106160.0,106150.0,0.00094887]
[1762763529872,1.92872178,106160.0,106150.0,0.00094887]
[1762763530092,1.93702853,106160.0,106150.0,0.00094887]
[1762763530299,1.92872187,106160.0,106150.0,0.00094887]
[1762763530752,1.9577174,106160.0,106150.0,0.00094887]
[1762763531069,1.62634664,106160.0,106150.0,0.00094887]
[1762763531937,1.6258769,106160.0,106150.0,0.00094887]
[1762763532143,1.65203203,106160.0,106150.0,0.00094887]
[1762763532558,1.28441708,106160.0,106150.0,0.00094887]
[1762763533925,1.28441202,106160.0,106150.0,0.00094887]
[1762763535684,1.25825689,106160.0,106150.0,0.00094887]
[1762763537608,1.25823753,106160.0,106150.0,0.00094887]
[1762763543214,2.24221053,106160.0,106150.0,0.00094887]
[1762763543442,1.70283326,106160.0,106150.0,0.00094887]
[1762763543644,1.70236352,106160.0,106150.0,0.00094887]
[1762763544422,2.06105065,106160.0,106150.0,0.00094887]
[1762763545194,1.72851865,106160.0,106150.0,0.00094887]
[1762763545523,2.06105065,106160.0,106150.0,0.00094887]
[1762763545822,1.72851865,106160.0,106150.0,0.00094887]
[1762763546022,0.51143037,106140.0,106130.0,0.0002]
[1762763546234,1.26270433,106140.0,106130.0,0.00068113]
[1762763546439,1.36240949,106140.0,106130.0,0.00068113]
[1762763546643,1.45304169,106140.0,106130.0,0.00068113]
[1762763546837,0.18848364,106110.0,106100.0,0.01007125]
[1762763547079,0.56665945,106110.0,106100.0,0.0097359]
[1762763547255,0.57225564,106110.0,106100.0,0.0097359]
[1762763547977,0.57225564,106110.0,106100.0,0.0003359]
[1762763548599,0.57225564,106110.0,106100.0,0.0097359]
[1762763548824,0.57325564,106110.0,106100.0,0.0097359]
[1762763549075,0.57525564,106110.0,106100.0,0.0097359]
[1762763550778,0.57525564,106110.0,106100.0,0.0003359]
[1762763551180,0.89825564,106110.0,106100.0,0.0003359]
[1762763552686,0.89525564,106110.0,106100.0,0.0003359]
[1762763552888,0.89625564,106110.0,106100.0,0.0003359]
[1762763553040,0.89825564,106110.0,106100.0,0.0003359]
[1762763556353,0.92655665,106110.0,106100.0,0.0003359]
[1762763556779,0.18851918,106090.0,106070.0,0.54101852]
[1762763557000,0.18851918,106090.0,106080.0,0.00942673]
[1762763557220,0.18851918,106090.0,106080.0,0.19960002]
[1762763557640,0.18851918,106090.0,106080.0,0.01106307]
[1762763557846,0.18851918,106090.0,106080.0,0.00163634]
[1762763558069,0.20341918,106090.0,106080.0,0.00163634]
[1762763558283,0.53495118,106090.0,106080.0,0.01106129]
[1762763558495,0.24078918,106090.0,106080.0,0.01106129]
[1762763558703,0.24178918,106090.0,106080.0,0.00163634]
[1762763558900,0.24378918,106090.0,106080.0,0.00163634]
[1762763559143,0.24378918,106090.0,106080.0,0.01106129]
[1762763560325,0.20341918,106090.0,106080.0,0.19959824]
[1762763560702,0.003,106090.0,106080.0,0.34359329]
[1762763560838,0.003,106090.0,106080.0,0.20017329]
[1762763561030,0.18951918,106090.0,106080.0,0.20959824]
[1762763561234,0.001,106090.0,106080.0,0.20959824]
[1762763561439,0.19051918,106090.0,106080.0,0.20959824]
[1762763561640,0.20341918,106090.0,106080.0,0.19959824]
[1762763562598,0.0149,106090.0,106080.0,0.19959824]
[1762763562827,0.003,106090.0,106080.0,0.21959824]
[1762763563034,0.246,106120.0,106100.0,0.18850141]
[1762763563403,0.246,106120.0,106110.0,0.0094134]
[1762763563404,0.20036676,106120.0,106110.0,0.0094134]
[1762763563781,0.24073676,106120.0,106110.0,0.0094134]
[1762763564033,0.21695588,106120.0,106110.0,0.0094134]
[1762763564452,0.0149,106120.0,106110.0,0.18848364]
[1762763564657,0.0139,106120.0,106110.0,0.19789526]
[1762763564859,0.0119,106120.0,106110.0,0.19789526]
[1762763565067,0.0139,106120.0,106110.0,0.19789526]
[1762763565271,0.20636588,106120.0,106110.0,0.19789526]
[1762763565475,0.20636588,106120.0,106110.0,0.18848364]
[1762763565858,0.0179,106120.0,106110.0,0.18848364]
[1762763566087,0.0179,106120.0,106110.0,0.19789526]
[1762763566710,0.20636588,106120.0,106110.0,0.19789526]
[1762763567192,0.24673588,106120.0,106100.0,0.18850083]
[1762763567400,0.367022,106120.0,106110.0,0.18848364]
[1762763567608,0.03449,106120.0,106110.0,0.18848364]
[1762763567833,0.367022,106120.0,106110.0,0.19789526]
[1762763568048,0.363022,106120.0,106110.0,0.18848364]
[1762763568256,0.21895588,106120.0,106110.0,0.18848364]
[1762763568462,0.24473588,106120.0,106110.0,0.00093479]
[1762763570153,0.57526788,106120.0,106110.0,0.00093479]
[1762763570405,0.58126788,106120.0,106110.0,0.00193479]
[1762763570562,0.24873588,106120.0,106110.0,0.00193479]
[1762763579316,0.58126788,106120.0,106110.0,0.00193479]
[1762763579864,0.90426788,106120.0,106110.0,0.00193479]
[1762763580107,0.92179011,106120.0,106110.0,0.00193479]
[1762763580311,0.95009027,106120.0,106110.0,0.00193479]
[1762763580490,0.95055998,106120.0,106110.0,0.00193479]
[1762763581105,0.61802798,106120.0,106110.0,0.00193479]
[1762763581301,0.66786583,106120.0,106110.0,0.00193479]
[1762763581887,0.18848364,106110.0,106100.0,4.82e-05]
[1762763582097,0.18848364,106110.0,106070.0,8e-05]
[1762763582098,0.18853695,106080.0,106070.0,8e-05]
[1762763582304,0.21579695,106080.0,106070.0,0.0002239]
[1762763582717,0.21579695,106080.0,106070.0,0.34218528]
[1762763582925,0.21579695,106080.0,106070.0,0.0002239]
[1762763583149,0.24045695,106080.0,106070.0,0.0002239]
[1762763583350,0.89598895,106080.0,106070.0,0.0002239]
[1762763583933,0.89698895,106080.0,106070.0,0.0002239]
[1762763584174,0.89898895,106080.0,106070.0,0.0052239]
[1762763584395,0.89798895,106080.0,106070.0,0.0052239]
[1762763584596,0.89898895,106080.0,106070.0,0.0052239]
[1762763584794,0.91647764,106080.0,106070.0,0.0052239]
[1762763585001,0.58394564,106080.0,106070.0,0.0052239]
[1762763585205,0.91447098,106080.0,106070.0,0.0002239]
[1762763585562,0.89898895,106080.0,106070.0,0.0002239]
[1762763585775,0.89798895,106080.0,106070.0,0.0002239]
[1762763586012,0.89898895,106080.0,106070.0,0.0002239]
[1762763586142,0.91646403,106080.0,106070.0,0.0002239]
[1762763586343,0.89898895,106080.0,106070.0,0.0002239]
[1762763587123,0.91645793,106080.0,106070.0,0.0002239]
[1762763588068,0.91645793,106080.0,106070.0,0.00115921]
[1762763588705,0.58392593,106080.0,106070.0,0.00115921]
[1762763588879,0.91645793,106080.0,106070.0,0.00115921]
[1762763589281,0.9447677,106080.0,106070.0,0.00115921]
[1762763589683,0.6122357,106080.0,106070.0,0.00115921]
[1762763590634,0.58392593,106080.0,106070.0,0.00115921]
[1762763590755,0.56645695,106080.0,106070.0,0.00115921]
[1762763591338,0.54179695,106080.0,106070.0,0.33397467]
[1762763591547,0.56645695,106080.0,106070.0,0.00115921]
[1762763591721,0.89927241,106080.0,106070.0,0.00115921]
[1762763591992,0.56645695,106080.0,106070.0,0.00115921]
[1762763594891,0.61221009,106080.0,106070.0,0.00115921]
[1762763595238,0.94502555,106080.0,106070.0,0.00115921]
[1762763595433,0.61221009,106080.0,106070.0,0.00115921]
[1762763595642,0.18855472,106070.0,106060.0,0.33281546]
[1762763595830,0.18855472,106070.0,106060.0,0.52138796]
[1762763595831,0.18869875,106070.0,106060.0,0.52138796]
[1762763596264,0.18869875,106070.0,106060.0,0.33281546]
[1762763597094,0.18869875,106070.0,106050.0,0.19821879]
[1762763597280,0.18969875,106070.0,106060.0,0.53082357]
[1762763597467,0.18969875,106070.0,106060.0,0.1885725]
[1762763597663,0.19169875,106070.0,106060.0,0.5308218]
[1762763597903,0.19169875,106070.0,106060.0,0.52138796]
[1762763598062,0.19169875,106070.0,106060.0,0.33281546]
[1762763598276,0.1885725,106060.0,106050.0,0.20821879]
[1762763598478,0.1885725,106060.0,106050.0,0.54103425]
[1762763599453,0.20066875,106070.0,106050.0,0.54103425]
[1762763599676,0.20066875,106070.0,106060.0,0.34225107]
[1762763599855,0.20066875,106070.0,106060.0,0.52138796]
[1762763600464,0.20066875,106070.0,106060.0,0.33281546]
[1762763600669,0.20166875,106070.0,106060.0,0.33281546]
[1762763601224,0.20166875,106070.0,106060.0,0.52162186]
[1762763601421,0.20166875,106070.0,106060.0,0.33304936]
[1762763601678,0.20366875,106070.0,106060.0,0.33304936]
[1762763601883,0.57619421,106070.0,106060.0,0.0002339]
[1762763602082,0.59264927,106070.0,106060.0,0.0002339]
[1762763602297,0.58330355,106070.0,106060.0,0.0002339]
[1762763602530,0.91711901,106070.0,106060.0,0.0002339]
[1762763602651,0.91411901,106070.0,106060.0,0.0002339]
[1762763603102,0.91711901,106070.0,106060.0,0.0002339]
[1762763603460,0.58430355,106070.0,106060.0,0.0002339]
[1762763603662,0.91711901,106070.0,106060.0,0.0002339]
[1762763603873,0.96711901,106070.0,106060.0,0.0002339]
[1762763604514,1.00863901,106070.0,106060.0,0.0002339]
[1762763606614,0.67582355,106070.0,106060.0,0.0002339]
[1762763606820,1.00863901,106070.0,106060.0,0.0002339]
[1762763608117,0.67582355,106070.0,106060.0,0.0002339]
[1762763608316,1.03695191,106070.0,106060.0,0.0002339]
[1762763609280,1.10707731,106070.0,106060.0,0.0002339]
[1762763611642,1.10711731,106070.0,106060.0,0.0002339]
[1762763612919,1.06555731,106070.0,106060.0,0.0002339]
[1762763613124,1.10711731,106070.0,106060.0,0.0002339]
[1762763616532,0.77430185,106070.0,106060.0,0.0002339]
[1762763616940,1.10711731,106070.0,106060.0,0.0002339]
[1762763617361,1.10664757,106070.0,106060.0,0.0002339]
[1762763617575,1.10711731,106070.0,106060.0,0.0002339]
[1762763618346,0.70417645,106070.0,106060.0,0.0002339]
[1762763618600,1.03699191,106070.0,106060.0,0.0002339]
[1762763619712,1.03695191,106070.0,106060.0,0.0002339]
[1762763619963,1.03648217,106070.0,106060.0,0.0002339]
[1762763620156,0.66214671,106070.0,106060.0,0.1888064]
[1762763620437,0.60997381,106070.0,106060.0,0.33304936]
[1762763620839,0.61004715,106070.0,106060.0,0.52162186]
[1762763621061,0.61004715,106070.0,106060.0,0.33304936]
[1762763621262,0.61004715,106070.0,106060.0,0.0002339]
[1762763621421,0.61004715,106070.0,106060.0,0.3424832]
[1762763621597,0.61004715,106070.0,106060.0,0.52162186]
[1762763621809,0.61004715,106070.0,106060.0,0.85443732]
[1762763621810,0.07067243,106070.0,106060.0,0.85443732]
[1762763622002,0.02067243,106070.0,106060.0,0.52162186]
[1762763622257,0.20922715,106070.0,106060.0,0.52162186]
[1762763623185,0.22137715,106070.0,106060.0,0.0002339]
[1762763623314,0.26108715,106070.0,106060.0,0.33304936]
[1762763623945,0.26108715,106070.0,106060.0,0.52162186]
[1762763624143,0.26108715,106070.0,106060.0,0.1888064]
[1762763624363,0.26108715,106070.0,106060.0,0.52162186]
[1762763625463,0.23722715,106070.0,106060.0,0.52162186]
[1762763625881,0.23722715,106070.0,106060.0,0.1888064]
[1762763626107,0.26108715,106070.0,106060.0,0.0002339]
[1762763626499,0.22137715,106070.0,106060.0,0.19824024]
[1762763626648,0.22137715,106070.0,106060.0,0.33304936]
[1762763626844,0.22137715,106070.0,106060.0,0.1888064]
[1762763627049,0.22137715,106070.0,106060.0,0.0002339]
[1762763627457,0.26108715,106070.0,106060.0,0.0002339]
[1762763628195,0.02067243,106070.0,106060.0,0.86387116]
[1762763628396,0.20922715,106070.0,106060.0,0.54162186]
[1762763628635,0.02067243,106070.0,106060.0,0.53162186]
[1762763629020,0.20922715,106070.0,106060.0,0.53162186]
[1762763629718,0.20922715,106070.0,106060.0,0.34304936]
[1762763629918,0.20922715,106070.0,106060.0,0.53162186]
[1762763630310,0.20922715,106070.0,106060.0,0.34304936]
[1762763630515,0.20922715,106070.0,106060.0,0.53162186]
[1762763631557,0.02067243,106070.0,106060.0,0.53162186]
[1762763631975,0.20922715,106070.0,106060.0,0.53162186]
[1762763632527,0.19169875,106070.0,106060.0,0.53162186]
[1762763634151,0.00314403,106070.0,106060.0,0.53162186]
[1762763634726,0.19169875,106070.0,106060.0,0.53162186]
[1762763635136,0.00314403,106070.0,106060.0,0.1988064]
[1762763635282,0.00314403,106070.0,106060.0,0.53162186]
[1762763635817,0.00314403,106070.0,106060.0,0.86443732]
[1762763637348,0.00314403,106070.0,106060.0,0.1988064]
[1762763637561,0.00314403,106070.0,106060.0,0.53162186]
[1762763638337,0.00314403,106070.0,106060.0,0.86443732]
[1762763638954,0.00314403,106070.0,106060.0,1.30106281]
[1762763639292,0.00314403,106070.0,106060.0,0.96824735]
[1762763639898,0.00114403,106070.0,106060.0,0.96824735]
[1762763640120,0.00014403,106070.0,106060.0,0.96824735]
[1762763640344,0.00214403,106070.0,106060.0,0.96824735]
[1762763640541,0.00314403,106070.0,106060.0,0.96924735]
[1762763640745,0.00114403,106070.0,106060.0,0.96924735]
[1762763641120,0.19169875,106070.0,106060.0,0.53262186]
[1762763641323,0.19169875,106070.0,106060.0,0.1998064]
[1762763641526,0.19169875,106070.0,106060.0,0.53262186]
[1762763641940,0.00314403,106070.0,106060.0,0.86543732]
[1762763642696,0.19169875,106070.0,106060.0,0.86543732]
[1762763642913,0.00314403,106070.0,106060.0,0.86543732]
[1762763646411,0.00314403,106070.0,106060.0,1.23443506]
[1762763646631,0.00314403,106070.0,106060.0,1.29224735]
[1762763647216,0.00314403,106070.0,106060.0,1.62506281]
[1762763648202,0.00314403,106070.0,106060.0,1.29224735]
[1762763648786,0.00314403,106070.0,106060.0,1.44859735]
[1762763650870,0.00314403,106070.0,106060.0,0.78296643]
[1762763651072,0.00314403,106070.0,106060.0,1.44859735]
[1762763651527,0.00314403,106070.0,106060.0,1.78141281]
[1762763652952,0.00314403,106070.0,106060.0,1.11557879]
[1762763654027,4.03e-06,106070.0,106060.0,1.59056339]
[1762763654273,0.00086364,106090.0,106080.0,0.23471923]
[1762763654508,0.00086364,106090.0,106080.0,0.9676402]
[1762763654703,0.00086364,106090.0,106080.0,1.2906402]
[1762763654926,0.00086364,106090.0,106080.0,0.62541548]
[1762763655171,0.00086364,106090.0,106080.0,1.2906402]
[1762763656018,0.00186364,106090.0,106080.0,1.2936402]
[1762763657087,0.00386364,106090.0,106080.0,1.2996402]
[1762763657332,0.00386364,106090.0,106080.0,0.64441547]
[1762763657591,0.00386364,106090.0,106080.0,1.2996402]
[1762763657833,0.00386364,106090.0,106080.0,0.31141548]
[1762763658057,0.00386364,106090.0,106080.0,0.57633159]
[1762763660869,0.19238282,106090.0,106080.0,0.19753695]
[1762763661082,0.19238282,106090.0,106080.0,0.20753695]
[1762763661287,0.19238282,106090.0,106080.0,0.009]
[1762763661500,0.19238282,106090.0,106080.0,0.2069619]
[1762763661717,0.19238282,106090.0,106080.0,0.009]
[1762763661926,0.19238282,106090.0,106080.0,0.19753695]
[1762763662163,0.19238282,106090.0,106080.0,0.01842495]
[1762763662637,0.19238282,106090.0,106080.0,0.2069619]
[1762763662875,0.19238282,106090.0,106080.0,0.19753695]
[1762763663075,0.19238282,106090.0,106080.0,0.009]
[1762763663279,0.19238282,106090.0,106080.0,0.19753695]
[1762763663896,0.19238282,106090.0,106080.0,0.34161236]
[1762763664066,0.19238282,106090.0,106080.0,0.53014931]
[1762763664440,0.19238282,106090.0,106080.0,0.34161236]
[1762763664849,0.19238282,106090.0,106080.0,0.53014931]
[1762763665742,0.19238282,106090.0,106080.0,0.34161236]
[1762763665946,0.19238282,106090.0,106080.0,0.009]
[1762763667437,0.22030282,106090.0,106080.0,0.009]
[1762763667682,0.24358282,106090.0,106080.0,0.009]
[1762763668266,0.57619518,106090.0,106080.0,0.009]
[1762763668465,0.57419518,106090.0,106080.0,0.003]
[1762763668683,0.18855422,106080.0,106060.0,1.02019738]
[1762763668841,0.18855422,106080.0,106070.0,0.18855472]
[1762763669044,0.23600856,106090.0,106070.0,0.18855472]
[1762763669239,0.18853695,106080.0,106070.0,0.53059469]
[1762763669452,0.18853695,106080.0,106070.0,0.52116708]
[1762763669852,0.23500922,106090.0,106070.0,0.52116708]
[1762763670076,0.001,106080.0,106070.0,0.19055472]
[1762763670334,0.001,106080.0,106070.0,1.29265797]
[1762763671394,0.003,106080.0,106070.0,0.62743325]
[1762763671569,0.002,106080.0,106070.0,0.92186333]
[1762763671770,0.002,106080.0,106070.0,0.85416708]
[1762763671969,0.00186364,106090.0,106080.0,0.18853695]
[1762763672187,0.00086364,106090.0,106080.0,0.54114931]
[1762763672595,0.00086364,106090.0,106080.0,0.52114931]
[1762763672840,0.00086364,106090.0,106080.0,0.19853695]
[1762763673022,0.00086364,106090.0,106080.0,0.53114931]
[1762763673175,0.00086364,106090.0,106080.0,0.53214931]
[1762763674176,0.00186364,106090.0,106080.0,0.53714931]
[1762763674371,0.00186364,106090.0,106080.0,0.86976167]
[1762763675216,0.00186364,106090.0,106080.0,0.53714931]
[1762763675417,0.19038282,106090.0,106080.0,0.53714931]
[1762763675805,0.00186364,106090.0,106080.0,0.53714931]
[1762763677622,0.19038282,106090.0,106080.0,0.53714931]
[1762763677879,0.19038282,106090.0,106080.0,0.006]
[1762763678203,0.24158282,106090.0,106080.0,0.006]
[1762763679361,0.24205327,106090.0,106080.0,0.006]
[1762763680026,0.24205327,106090.0,106080.0,0.19453695]
[1762763680225,0.24158282,106090.0,106080.0,0.19453695]
[1762763680461,0.00186364,106090.0,106080.0,0.52714931]
[1762763680676,0.00186364,106090.0,106080.0,0.86976167]
[1762763681141,0.00186364,106090.0,106080.0,0.53714931]
[1762763682925,0.00186364,106090.0,106080.0,0.64010745]
[1762763684876,0.00186364,106090.0,106080.0,0.20453695]